bitfinex/quotes_SOLUSD_20260113
["timestamp","ask_amount","ask_price","bid_price","bid_amount"]
[1768273279452,0.62469068,138.29,138.25,0.70247287]
[1768273279658,0.62469068,138.29,138.24,0.80247287]
[1768273279659,0.10951328,138.28,138.24,0.80247287]
[1768273279867,0.10951328,138.28,138.24,0.1]
[1768273280279,0.61953891,138.27,138.24,0.1]
[1768273281493,0.61953891,138.27,138.21,0.70247287]
[1768273282268,20.43136245,138.29,138.21,0.70247287]
[1768273282474,20.9623095,138.29,138.21,0.70247287]
[1768273283003,20.9623095,138.29,138.23,0.70247287]
[1768273285198,20.9623095,138.29,138.24,0.70247287]
[1768273288196,12.59752599,138.28,138.24,0.70247287]
[1768273288390,7.23179531,138.28,138.24,0.70247287]
[1768273290281,7.33511478,138.28,138.24,0.70247287]
[1768273290595,0.52667078,138.27,138.23,0.70247287]
[1768273290791,0.49667079,138.27,138.23,0.70247287]
[1768273293287,7.23179531,138.28,138.24,0.70247287]
[1768273293606,0.10302247,138.27,138.23,7.23418031]
[1768273293898,0.10302247,138.27,138.23,7.93665318]
[1768273294108,0.10302247,138.27,138.22,7.23471348]
[1768273294404,0.10302247,138.27,138.22,7.93718635]
[1768273295005,0.10302247,138.27,138.23,0.66296009]
[1768273295199,7.20179532,138.28,138.24,0.66296009]
[1768273295200,0.50531017,138.28,138.24,0.66296009]
[1768273295791,20.43136383,138.29,138.24,0.66296009]
[1768273298111,0.50124706,138.28,138.24,7.8964639]
[1768273298701,13.2,138.29,138.25,0.66296009]
[1768273298885,13.299,138.29,138.25,0.66296009]
[1768273299085,13.2,138.29,138.25,0.66296009]
[1768273301603,13.2,138.29,138.26,0.66296009]
[1768273302790,7.23067158,138.3,138.25,7.23321968]
[1768273302994,13.91791817,138.32,138.26,7.23269991]
[1768273303201,5.36817973,138.31,138.26,7.23269991]
[1768273303401,13.91791817,138.32,138.27,0.66296009]
[1768273303713,5.3676402,138.31,138.27,0.66296009]
[1768273303918,13.91791817,138.32,138.27,0.66296009]
[1768273304095,5.3676388,138.31,138.27,0.66296009]
[1768273304291,20.42977096,138.32,138.28,0.66296009]
[1768273304508,13.2,138.32,138.28,0.66296009]
[1768273305719,13.2,138.32,138.3,0.66296009]
[1768273307416,0.60737342,138.31,138.27,0.66296009]
[1768273308506,0.60737342,138.31,138.28,7.89466387]
[1768273309018,13.2,138.32,138.29,0.66296009]
[1768273309809,7.83493488,138.34,138.3,0.66296009]
[1768273309810,7.2286668,138.34,138.3,0.66296009]
[1768273310117,20.90547278,138.46,138.3,0.66296009]
[1768273310118,7.94457282,138.38,138.3,0.66296009]
[1768273310328,5.36032531,138.37,138.3,0.66296009]
[1768273310520,0.60626808,138.37,138.3,0.66296009]
[1768273310832,13.80626808,138.38,138.3,0.66296009]
[1768273311030,0.71791817,138.41,138.32,0.66296009]
[1768273311236,0.60626808,138.39,138.32,0.66296009]
[1768273311538,0.60626808,138.39,138.33,0.66296009]
[1768273311704,0.60626808,138.39,138.35,0.66296009]
[1768273312421,20.42500976,138.41,138.35,0.66296009]
[1768273312607,21.14181142,138.41,138.35,0.66296009]
[1768273312923,21.14181142,138.41,138.36,7.2275224]
[1768273313124,0.60737342,138.4,138.36,7.89048249]
[1768273313326,0.60737342,138.4,138.37,0.66296009]
[1768273313520,21.03127784,138.41,138.37,0.66296009]
[1768273314630,0.71680166,138.4,138.37,0.66296009]
[1768273316430,0.60626808,138.4,138.37,0.66296009]
[1768273316730,0.60626808,138.4,138.34,0.66296009]
[1768273317231,20.42500976,138.41,138.36,0.66296009]
[1768273318517,20.42500976,138.41,138.37,0.66296009]
[1768273320318,0.71680166,138.4,138.36,7.89040562]
[1768273322444,13.2,138.41,138.38,0.66296009]
[1768273323235,13.80737342,138.41,138.38,0.66296009]
[1768273324217,0.2,138.42,138.38,0.66296009]
[1768273324735,0.2,138.42,138.39,0.69084132]
[1768273325328,0.2,138.42,138.38,7.22602756]
[1768273325329,0.82887002,138.42,138.38,0.69084132]
[1768273325714,0.2,138.42,138.39,0.69084132]
[1768273328214,0.89442574,138.42,138.38,7.22623232]
[1768273328411,0.89442574,138.42,138.38,7.91707364]
[1768273328831,0.89442574,138.42,138.39,0.69084132]
[1768273329539,0.89442574,138.42,138.39,7.91675315]
[1768273329839,0.2,138.42,138.4,0.69084132]
[1768273330021,0.89508792,138.44,138.41,0.69084132]
[1768273331244,0.2,138.44,138.41,0.69084132]
[1768273334744,0.82887002,138.44,138.4,7.93594266]
[1768273335232,0.69442574,138.43,138.37,0.7108637]
[1768273335416,0.69442574,138.43,138.38,7.93697482]
[1768273335945,0.69442574,138.43,138.4,0.7108637]
[1768273336528,7.42344779,138.44,138.4,0.7108637]
[1768273336827,8.12967647,138.44,138.4,0.7108637]
[1768273339939,0.61784067,138.43,138.39,7.22592716]
[1768273340140,0.61784067,138.43,138.4,0.7108637]
[1768273340334,0.61784067,138.43,138.39,7.22592716]
[1768273342744,0.61784067,138.43,138.38,7.22647781]
[1768273343332,0.7053448,138.42,138.38,7.22647781]
[1768273344360,7.93032993,138.43,138.39,0.7108637]
[1768273348162,7.93032993,138.43,138.36,18.06859661]
[1768273348163,0.61784067,138.42,138.35,0.7108637]
[1768273348374,0.61871571,138.4,138.33,7.93960331]
[1768273348574,0.70447851,138.38,138.34,0.7108637]
[1768273349860,13.88622868,138.39,138.34,0.7108637]
[1768273350382,0.61784067,138.38,138.34,0.7108637]
[1768273351073,0.61784067,138.38,138.34,7.93941846]
[1768273353167,0.61784067,138.38,138.35,0.7108637]
[1768273354685,0.61784067,138.38,138.34,7.22851121]
[1768273355407,0.61784067,138.38,138.33,7.22908985]
[1768273358471,0.61784067,138.38,138.33,0.6989185]
[1768273360085,21.04346167,138.39,138.35,0.6989185]
[1768273360987,13.18,138.39,138.35,0.6989185]
[1768273361480,0.68673947,138.42,138.35,0.6989185]
[1768273361862,0.68673947,138.42,138.36,7.2275224]
[1768273362070,0.68673947,138.42,138.37,0.6989185]
[1768273362264,13.86673947,138.43,138.37,0.6989185]
[1768273363169,13.18,138.43,138.37,0.6989185]
[1768273363582,0.68673947,138.42,138.37,0.6989185]
[1768273364387,0.68673947,138.42,138.38,7.92539631]
[1768273364566,0.68673947,138.42,138.38,7.22647781]
[1768273365586,20.40390687,138.43,138.37,0.6989185]
[1768273365772,21.09064634,138.43,138.37,0.6989185]
[1768273367287,21.09064634,138.43,138.39,0.6989185]
[1768273368102,13.18,138.43,138.39,0.6989185]
[1768273370490,0.68673947,138.42,138.39,0.6989185]
[1768273370682,0.68673947,138.42,138.38,7.22647781]
[1768273371888,20.40399083,138.43,138.39,0.6989185]
[1768273371889,21.0907303,138.43,138.39,0.6989185]
[1768273372088,0.68673947,138.42,138.38,7.92539631]
[1768273373585,7.91113022,138.42,138.38,0.6989185]
[1768273378892,7.91165173,138.41,138.38,0.6989185]
[1768273379197,0.68673947,138.4,138.35,0.6989185]
[1768273380589,0.62673946,138.4,138.34,25.99844308]
[1768273381579,13.18,138.43,138.35,0.6989185]
[1768273382394,0.68673947,138.42,138.35,0.6989185]
[1768273383698,0.68673947,138.41,138.36,7.2275224]
[1768273384806,0.68673947,138.41,138.35,7.2278836]
[1768273385581,0.68673947,138.41,138.36,0.69673128]
[1768273385798,7.91189922,138.41,138.36,7.92425191]
[1768273386002,0.72010111,138.4,138.36,7.92425191]
[1768273386504,0.72010111,138.4,138.36,7.22752063]
[1768273386906,0.72010111,138.4,138.34,18.76768857]
[1768273386907,0.72010111,138.39,138.35,7.22804481]
[1768273388980,0.72010111,138.39,138.36,0.69673128]
[1768273390304,0.72010111,138.39,138.35,7.22804481]
[1768273390305,0.72010111,138.39,138.33,7.92582113]
[1768273390784,7.94567023,138.4,138.34,0.69673128]
[1768273391109,0.72010111,138.4,138.34,0.69673128]
[1768273391300,7.94515925,138.41,138.34,0.69673128]
[1768273391602,0.72010111,138.4,138.34,0.69673128]
[1768273392392,0.72010111,138.4,138.36,0.69673128]
[1768273393684,0.72010111,138.4,138.36,7.92414152]
[1768273394388,0.72010111,138.4,138.37,0.7160688]
[1768273398210,0.72010111,138.4,138.36,0.7160688]
[1768273398510,0.72010111,138.4,138.34,0.7160688]
[1768273399210,0.72010111,138.4,138.35,7.22804481]
[1768273402189,0.72010111,138.4,138.36,0.7160688]
[1768273402616,0.70997232,138.39,138.36,0.7160688]
[1768273402801,0.70997232,138.39,138.34,0.7160688]
[1768273404001,0.70997232,138.39,138.36,0.7160688]
[1768273404916,0.70997232,138.34,138.25,0.7160688]
[1768273405216,0.70997232,138.34,138.26,0.7160688]
[1768273405217,0.67610146,138.32,138.26,0.7160688]
[1768273406019,0.67610146,138.32,138.27,7.2322268]
[1768273406197,0.67610146,138.32,138.28,0.7160688]
[1768273407209,13.18,138.33,138.29,0.7160688]
[1768273407514,21.13862034,138.34,138.29,0.7160688]
[1768273407717,13.90997232,138.34,138.29,0.7160688]
[1768273407902,13.2,138.34,138.29,0.7160688]
[1768273408924,13.2,138.34,138.3,0.7160688]
[1768273409419,7.938075,138.35,138.3,0.7160688]
[1768273409420,0.70997232,138.37,138.3,0.7160688]
[1768273409720,0.70997232,138.36,138.3,0.7160688]
[1768273410624,0.70997232,138.36,138.31,7.2301352]
[1768273411203,0.70997232,138.36,138.31,7.5436959]
[1768273411915,7.22779145,138.36,138.31,7.5436959]
[1768273412117,0.70997232,138.35,138.31,7.5436959]
[1768273412619,7.93809704,138.35,138.3,7.54415558]
[1768273418829,0.70997232,138.35,138.31,0.3135607]
[1768273419824,0.70997232,138.35,138.32,0.3135607]
[1768273420519,0.70997232,138.35,138.31,7.54350616]
[1768273428724,7.22767496,138.36,138.32,0.3135607]
[1768273428909,7.91001057,138.36,138.32,0.3135607]
[1768273429505,0.68233561,138.4,138.32,0.3135607]
[1768273430533,0.68233561,138.39,138.34,0.3135607]
[1768273433015,0.68233561,138.38,138.34,7.5420682]
[1768273434936,0.68233561,138.38,138.33,0.3135607]
[1768273435516,0.68233561,138.37,138.33,0.3135607]
[1768273435832,0.68233561,138.37,138.3,25.30730295]
[1768273435833,0.68233561,138.37,138.31,0.3135607]
[1768273436835,0.68233561,138.37,138.32,7.54317319]
[1768273438622,0.68233561,138.36,138.3,0.3135607]
[1768273438820,0.68233561,138.36,138.3,7.543872]
[1768273439223,0.68233561,138.36,138.31,7.23011555]
[1768273439940,0.68233561,138.36,138.31,7.54367625]
[1768273440636,0.68233561,138.35,138.31,7.54367625]
[1768273444445,0.68233561,138.35,138.32,0.3135607]
[1768273445134,13.89107384,138.37,138.32,0.3135607]
[1768273445542,0.69107384,138.36,138.32,0.3135607]
[1768273445924,0.69107384,138.36,138.31,7.23011555]
[1768273446434,0.69107384,138.36,138.31,18.075338]
[1768273447242,0.69107384,138.35,138.3,7.23065798]
[1768273451146,0.69107384,138.36,138.31,0.3135607]
[1768273454454,0.69107384,138.36,138.32,7.22961249]
[1768273455255,0.69107384,138.36,138.32,7.54317319]
[1768273458961,13.89931891,138.37,138.33,0.3135607]
[1768273459138,0.69931891,138.36,138.32,7.22961249]
[1768273459336,0.69931891,138.36,138.33,0.3135607]
[1768273459848,13.2,138.37,138.33,0.3135607]
[1768273460958,13.89931891,138.37,138.34,7.22856729]
[1768273461153,13.89931891,138.37,138.34,7.54212799]
[1768273465065,13.2,138.37,138.34,7.54212799]
[1768273465264,0.69931891,138.38,138.34,7.54212799]
[1768273470367,0.69931891,138.38,138.3,25.62086365]
[1768273470566,0.69931891,138.38,138.31,0.3135607]
[1768273471866,0.69931891,138.38,138.3,25.62086365]
[1768273472559,0.69931891,138.38,138.33,0.3135607]
[1768273474164,0.69931891,138.37,138.31,7.2299286]
[1768273474368,0.69931891,138.36,138.31,7.2299286]
[1768273474567,0.71456736,138.35,138.31,7.2299286]
[1768273476064,0.71456736,138.34,138.3,7.54403407]
[1768273483469,0.71456736,138.34,138.29,18.07768395]
[1768273483669,18.06309278,138.41,138.31,0.68526149]
[1768273483853,18.56987191,138.4,138.31,0.68526149]
[1768273484159,5.36987191,138.39,138.31,0.68526149]
[1768273484362,13.2,138.4,138.31,0.68526149]
[1768273484363,5.36987191,138.38,138.31,0.68526149]
[1768273484567,5.36987191,138.37,138.31,0.68526149]
[1768273484748,7.22595563,138.39,138.32,7.91487398]
[1768273484949,5.36919634,138.38,138.33,0.68526149]
[1768273485271,5.36919634,138.37,138.33,0.68526149]
[1768273485482,7.22595563,138.39,138.33,0.68526149]
[1768273485768,0.71456736,138.37,138.33,0.68526149]
[1768273485972,0.71456736,138.37,138.33,7.91429513]
[1768273486975,0.71456736,138.38,138.34,0.68526149]
[1768273488566,0.71456736,138.38,138.34,7.91358416]
[1768273490176,0.71456736,138.4,138.35,0.68526149]
[1768273490377,18.25966733,138.44,138.34,25.29974091]
[1768273490378,0.71456736,138.38,138.34,25.29974091]
[1768273492789,0.71456736,138.38,138.34,0.68526149]
[1768273493091,7.22503555,138.41,138.34,0.68526149]
[1768273493458,5.36820515,138.4,138.34,0.68526149]
[1768273493761,7.22503555,138.41,138.34,0.68526149]
[1768273494956,0.71456736,138.4,138.35,7.9133063]
[1768273495158,0.53730984,138.39,138.35,7.9133063]
[1768273495684,7.93960291,138.41,138.36,0.68526149]
[1768273495885,0.53730984,138.4,138.36,0.68526149]
[1768273496383,0.53730984,138.4,138.36,7.91278196]
[1768273496684,0.71279479,138.39,138.35,7.91314753]
[1768273497371,0.71279479,138.39,138.36,0.68526149]
[1768273498586,0.53906469,138.38,138.33,0.68526149]
[1768273499467,13.73906469,138.38,138.34,7.91382878]
[1768273501890,13.73906469,138.38,138.35,0.68526149]
[1768273502390,13.2,138.38,138.35,0.68526149]
[1768273503679,13.73730984,138.38,138.35,0.68526149]
[1768273506297,13.73730984,138.38,138.35,7.91327981]
[1768273510699,13.2,138.38,138.36,0.66805823]
[1768273510897,0.68721745,138.42,138.36,0.66805823]
[1768273511207,0.68721745,138.42,138.38,0.66805823]
[1768273513996,13.2,138.43,138.39,0.69628461]
[1768273516489,13.7671705,138.43,138.39,7.9221819]
[1768273518711,13.7671705,138.43,138.4,0.69628461]
[1768273518889,20.99112079,138.43,138.4,0.69628461]
[1768273519091,13.2,138.43,138.4,0.69628461]
[1768273519402,0.2,138.44,138.39,0.69628461]
[1768273520708,0.2,138.44,138.41,0.69628461]
[1768273522313,0.2,138.44,138.42,0.69628461]
[1768273524715,0.68208371,138.43,138.37,18.06711203]
[1768273524903,0.56946866,138.42,138.39,0.69628461]
[1768273532507,0.56946866,138.42,138.38,7.22645183]
[1768273532508,0.68095756,138.41,138.38,0.69628461]
[1768273534924,0.68095756,138.41,138.37,7.22682033]
[1768273535117,0.57058354,138.4,138.36,7.89992929]
[1768273535314,0.57058354,138.4,138.36,0.67259189]
[1768273535315,0.67595291,138.39,138.36,0.67259189]
[1768273536413,0.67595291,138.39,138.34,7.90102233]
[1768273536616,0.67595291,138.39,138.35,0.67259189]
[1768273537715,13.18,138.4,138.36,0.67259189]
[1768273539017,13.18,138.4,138.37,0.67259189]
[1768273540732,13.75553815,138.4,138.37,0.67259189]
[1768273543050,13.75553815,138.4,138.36,7.89999486]
[1768273543525,13.75553815,138.4,138.37,0.67259189]
[1768273545734,0.67494876,138.39,138.35,0.67259189]
[1768273545910,0.67494876,138.39,138.35,7.22764287]
[1768273548124,20.98097628,138.4,138.34,0.67259189]
[1768273549026,20.98097628,138.4,138.35,7.22804481]
[1768273549228,20.98097628,138.4,138.36,0.67259189]
[1768273549540,0.67494876,138.39,138.33,0.67259189]
[1768273550559,0.57653226,138.38,138.34,7.90111327]
[1768273550944,0.54656012,138.38,138.34,7.90111327]
[1768273551243,0.51656013,138.38,138.34,7.90111327]
[1768273553143,13.85595291,138.4,138.35,0.67259189]
[1768273554825,13.85595291,138.4,138.36,0.67259189]
[1768273558549,13.18,138.4,138.37,0.67259189]
[1768273559350,13.69616574,138.4,138.37,0.67259189]
[1768273559552,20.92162893,138.4,138.37,0.67259189]
[1768273563455,20.40546319,138.4,138.37,0.67259189]
[1768273563659,20.92162893,138.4,138.37,0.67259189]
[1768273564157,20.40546319,138.4,138.37,0.67259189]
[1768273564462,13.18,138.4,138.37,0.67259189]
[1768273567759,20.40546582,138.4,138.37,0.67259189]
[1768273567940,0.67435504,138.39,138.35,7.90424821]
[1768273568142,0.67435504,138.39,138.35,0.67640404]
[1768273568342,0.67435504,138.39,138.34,7.90476369]
[1768273569050,0.67435504,138.39,138.31,18.07474063]
[1768273569051,0.67435504,138.39,138.32,0.67640404]
[1768273569346,0.67435504,138.39,138.32,7.2294088]
[1768273569549,0.67435504,138.39,138.32,7.90581284]
[1768273569749,0.51774763,138.37,138.32,7.90581284]
[1768273569938,0.67278897,138.36,138.32,7.90581284]
[1768273570135,0.67278897,138.36,138.32,0.67640404]
[1768273570652,0.67278897,138.36,138.31,7.90619191]
[1768273572442,0.67125406,138.34,138.31,0.67640404]
[1768273575340,0.5208176,138.33,138.28,7.88528631]
[1768273575645,0.5208176,138.33,138.26,0.28432314]
[1768273575646,0.5208176,138.33,138.26,0.65370233]
[1768273576070,0.5208176,138.33,138.28,0.65370233]
[1768273577151,0.5208176,138.33,138.25,0.65370233]
[1768273577490,0.6697497,138.31,138.25,0.65370233]
[1768273577676,13.8697497,138.31,138.25,0.65370233]
[1768273578267,0.52230692,138.3,138.25,0.65370233]
[1768273578548,0.52230692,138.3,138.26,7.88628666]
[1768273578783,0.52230692,138.3,138.27,0.65370233]
[1768273579276,13.2,138.31,138.27,0.65370233]
[1768273579463,13.8950291,138.31,138.27,0.65370233]
[1768273579864,13.2,138.31,138.27,0.65370233]
[1768273580461,13.2,138.31,138.27,7.88541811]
[1768273580757,13.2,138.31,138.28,0.65370233]
[1768273583680,13.2,138.31,138.29,0.65370233]
[1768273584975,0.49728031,138.32,138.29,0.65370233]
[1768273585469,7.92423574,138.33,138.29,0.65370233]
[1768273585663,7.72648695,138.33,138.29,0.65370233]
[1768273587978,0.49728031,138.33,138.3,0.65370233]
[1768273588176,21.12371608,138.34,138.3,0.65370233]
[1768273590184,13.8950291,138.34,138.31,0.65370233]
[1768273590385,13.2,138.34,138.31,0.65370233]
[1768273591778,20.42858558,138.34,138.31,0.65370233]
[1768273593872,13.2,138.34,138.31,0.65370233]
[1768273594087,13.2,138.34,138.32,0.65370233]
[1768273595289,0.49728031,138.35,138.32,0.65370233]
[1768273597388,7.72535807,138.35,138.32,0.65370233]
[1768273604493,0.68750763,138.34,138.3,7.93604565]
[1768273605271,0.50472657,138.33,138.3,0.70556923]
[1768273605769,7.91574372,138.35,138.31,0.70556923]
[1768273607985,7.91574372,138.35,138.32,0.70556923]
[1768273612083,21.11574372,138.35,138.32,0.70556923]
[1768273612791,13.2,138.35,138.33,0.70556923]
[1768273612996,0.68750763,138.37,138.33,0.70556923]
[1768273613187,0.68750763,138.38,138.33,0.70556923]
[1768273613391,13.88750763,138.38,138.33,0.70556923]
[1768273613990,7.9131049,138.4,138.33,0.70556923]
[1768273614310,7.9131049,138.4,138.35,0.70556923]
[1768273614889,0.68750763,138.4,138.35,0.70556923]
[1768273615090,21.11256042,138.41,138.35,0.70556923]
[1768273615304,0.50472657,138.4,138.35,0.70556923]
[1768273616083,0.68567982,138.39,138.35,7.93356355]
[1768273616296,0.68567982,138.39,138.36,0.70556923]
[1768273619585,0.68567982,138.39,138.32,0.14216157]
[1768273619586,0.5065361,138.38,138.33,7.93465908]
[1768273619779,0.5065361,138.38,138.34,0.70556923]
[1768273621306,0.5065361,138.38,138.34,7.93403459]
[1768273623188,0.5065361,138.38,138.35,0.70556923]
[1768273632211,0.68388838,138.37,138.34,0.7122466]
[1768273634019,0.68388838,138.37,138.34,7.94076828]
[1768273634191,7.91049094,138.39,138.35,0.68098768]
[1768273634393,31.26314073,138.41,138.35,7.22797695]
[1768273634394,0.50785411,138.38,138.35,7.22797695]
[1768273635514,0.50785411,138.38,138.34,0.68098768]
[1768273636693,0.50785411,138.38,138.34,7.90920778]
[1768273637014,0.6843485,138.39,138.35,0.68098768]
[1768273637697,7.91038422,138.39,138.34,7.2282201]
[1768273637899,7.91038422,138.39,138.34,0.68098768]
[1768273637900,0.50785411,138.38,138.34,0.68098768]
[1768273638301,13.2,138.37,138.33,0.68098768]
[1768273638505,0.68258355,138.36,138.32,7.9101012]
[1768273640916,0.50960141,138.35,138.32,0.68098768]
[1768273641117,0.4497235,138.35,138.32,0.68098768]
[1768273641306,0.41972351,138.35,138.32,0.68098768]
[1768273647102,7.91199189,138.36,138.32,0.68098768]
[1768273648320,0.6843485,138.36,138.33,0.68098768]
[1768273652438,0.6843485,138.36,138.32,0.68098768]
[1768273653833,0.6843485,138.36,138.32,7.91057046]
[1768273655239,0.6843485,138.36,138.33,0.68419872]
[1768273657308,0.41887498,138.35,138.3,0.68419872]
[1768273657526,13.88169377,138.34,138.3,0.68419872]
[1768273659533,13.2,138.34,138.31,0.68419872]
[1768273663240,13.2,138.34,138.32,0.68419872]
[1768273663441,13.59029199,138.34,138.31,7.91424589]
[1768273663743,13.59029199,138.34,138.31,0.68419872]
[1768273663923,0.70999093,138.33,138.3,7.91481797]
[1768273664540,13.2,138.34,138.31,0.68419872]
[1768273665121,13.91322021,138.34,138.31,0.68419872]
[1768273666644,21.14182819,138.34,138.31,0.68419872]
[1768273667030,13.91322021,138.34,138.31,0.68419872]
[1768273668741,13.91322021,138.34,138.25,13.48432314]
[1768273668742,0.71322021,138.27,138.22,0.1]
[1768273668941,0.28432314,138.28,138.21,1e-08]
[1768273668942,0.28432314,138.25,138.21,1e-08]
[1768273669136,0.28432314,138.25,138.18,0.78419872]
[1768273669137,6.96443384,138.25,138.18,1e-08]
[1768273669329,3.08527528,138.15,138.13,7.23937802]
[1768273669536,13.2,138.19,138.13,7.23937802]
[1768273670445,13.2,138.19,138.11,18.10101231]
[1768273670835,20.43655412,138.19,138.12,0.28432314]
[1768273671141,0.71322021,138.18,138.11,18.10101231]
[1768273671348,0.71322021,138.18,138.12,0.68419872]
[1768273672346,0.71322021,138.17,138.13,0.68419872]
[1768273673048,0.71322021,138.18,138.13,0.68419872]
[1768273673429,13.91322021,138.18,138.13,0.68419872]
[1768273673829,0.71322021,138.18,138.14,0.68419872]
[1768273674048,13.91322021,138.18,138.14,0.68419872]
[1768273674251,21.15024632,138.18,138.14,0.68419872]
[1768273674428,0.71322021,138.17,138.13,0.68419872]
[1768273676347,0.71322021,138.16,138.12,0.68419872]
[1768273676747,0.71322021,138.16,138.11,7.24047312]
[1768273676748,0.71322021,138.14,138.11,0.68419872]
[1768273676934,13.2,138.15,138.12,0.68419872]
[1768273677326,0.71322021,138.14,138.06,0.68419872]
[1768273677532,0.71322021,138.14,138.08,0.68419872]
[1768273678234,7.95277714,138.13,138.08,0.68419872]
[1768273678653,0.71322021,138.12,138.08,0.68419872]
[1768273679752,13.2,138.12,138.09,0.68419872]
[1768273680142,0.71322021,138.14,138.09,0.68419872]
[1768273680344,0.71322021,138.12,138.08,7.24208736]
[1768273680742,0.71322021,138.12,138.09,0.68419872]
[1768273680945,13.2,138.13,138.09,0.68419872]
[1768273681143,13.91322021,138.13,138.09,0.68419872]
[1768273682760,21.15285382,138.13,138.09,0.68419872]
[1768273683059,21.15285382,138.13,138.07,0.68419872]
[1768273684138,21.15285382,138.13,138.08,0.68419872]
[1768273687068,0.65384722,138.12,138.07,7.93666457]
[1768273688570,0.65384722,138.12,138.06,7.93747498]
[1768273688864,0.65384722,138.11,138.06,7.93747498]
[1768273689068,0.65384722,138.11,138.06,7.24322758]
[1768273689266,0.65384722,138.11,138.07,0.6942474]
[1768273689949,0.65384722,138.11,138.03,0.6942474]
[1768273690163,0.65384722,138.11,138.02,37.75479757]
[1768273690164,0.65384722,138.11,138.06,0.6942474]
[1768273690659,0.65384722,138.09,138.04,0.6942474]
[1768273691247,0.65384722,138.08,138.02,27.58211126]
[1768273692579,18.09806433,138.14,138.04,0.6942474]
[1768273692752,13.22,138.13,138.04,0.6942474]
[1768273693479,20.45956658,138.13,138.04,0.6942474]
[1768273693949,20.45956658,138.13,138.06,0.6689745]
[1768273694670,13.94492553,138.13,138.06,0.6689745]
[1768273694863,0.55098143,138.12,138.06,0.6689745]
[1768273695754,0.55098143,138.12,138.05,26.02210741]
[1768273696072,0.55098143,138.12,138.08,0.6689745]
[1768273697364,0.55098143,138.12,138.07,0.6689745]
[1768273697565,0.55098143,138.12,138.05,18.77835515]
[1768273697764,0.55098143,138.12,138.06,0.6689745]
[1768273698981,0.72318609,138.11,138.02,20.31155695]
[1768273699277,0.72318609,138.11,138.02,27.55682235]
[1768273699571,0.72148127,138.08,138.03,0.6689745]
[1768273699777,13.77439124,138.07,138.03,0.6689745]
[1768273700711,13.22,138.07,138.03,0.6689745]
[1768273701458,13.22,138.07,138.04,0.6689745]
[1768273703184,13.94492553,138.1,138.06,0.6689745]
[1768273704382,21.18608893,138.1,138.06,0.6689745]
[1768273706777,21.18608893,138.1,138.03,18.11200463]
[1768273706778,0.72492553,138.09,138.03,0.6689745]
[1768273707053,0.72492553,138.08,138.02,19.64258245]
[1768273707252,0.72492553,138.06,138.02,19.64258245]
[1768273708876,7.96829294,138.06,138.02,19.64258245]
[1768273709995,7.96829294,138.06,137.83,36.09034379]
[1768273709996,0.62492553,138.04,137.83,36.09034379]
[1768273710153,0.72492553,137.96,137.84,30.0]
[1768273710357,0.22386115,137.97,137.83,49.31034379]
[1768273710358,0.72429912,137.94,137.83,49.31034379]
[1768273710582,0.72429912,137.94,137.88,6.6801107]
[1768273710883,0.66228475,137.94,137.87,25.3862334]
[1768273711181,0.22386115,137.97,137.87,25.3862334]
[1768273711182,13.44386115,137.97,137.87,25.3862334]
[1768273711391,14.1061459,137.97,137.87,25.3862334]
[1768273711579,14.1061459,137.97,137.87,32.0663441]
[1768273711756,14.1061459,137.97,137.88,0.14216157]
[1768273711964,14.1061459,137.97,137.88,0.28432314]
[1768273712162,0.72429912,137.96,137.88,0.6689745]
[1768273712369,13.94429912,137.96,137.87,25.3862334]
[1768273712578,13.22,137.96,137.87,38.6062334]
[1768273712889,0.22386115,137.97,137.89,25.3825513]
[1768273713186,0.8861459,137.97,137.89,38.6025513]
[1768273713392,8.13410894,137.97,137.89,25.3825513]
[1768273713585,0.6629049,137.95,137.88,7.25259281]
[1768273713767,0.72368517,137.93,137.88,7.25259281]
[1768273714886,0.72368517,137.93,137.84,25.39175856]
[1768273715185,7.97389422,137.93,137.84,25.39175856]
[1768273715385,0.22386115,137.97,137.85,13.22]
[1768273715589,13.22,137.98,137.89,0.28432314]
[1768273715890,13.22,137.98,137.9,13.22]
[1768273716096,13.22,137.98,137.91,0.28432314]
[1768273716264,31.3335432,138.02,137.91,0.28432314]
[1768273716781,7.2459808,138.01,137.92,7.25058004]
[1768273717089,7.2459808,138.01,137.93,0.70343576]
[1768273717392,0.63648098,138.0,137.93,0.70343576]
[1768273718689,0.099,137.99,137.94,7.24952878]
[1768273719567,0.099,137.99,137.92,26.08046591]
[1768273719777,0.099,137.99,137.92,39.30046591]
[1768273720590,0.099,137.99,137.93,0.70343576]
[1768273720791,0.63648098,138.01,137.95,0.70343576]
[1768273721290,0.63648098,138.01,137.96,13.92343576]
[1768273721991,0.63648098,138.01,137.97,7.24795245]
[1768273722394,0.63648098,138.01,137.94,18.82725771]
[1768273722584,0.63648098,138.01,137.95,13.22]
[1768273723089,0.099,138.0,137.95,7.24896005]
[1768273723291,0.099,138.0,137.94,21.17286793]
[1768273724888,0.099,138.0,137.94,7.95286793]
[1768273725114,0.099,138.0,137.94,21.17286793]